[Event "Titled Tuesday Blitz March 08 Early 2022"]
[White "Skliarov, Viktor"]
[Black "Svane, Frederik"]
[WhiteFideId "14106736"]
[BlackFideId "12923044"]
[WhiteElo "2229"]
[BlackElo "2459"]
[Result "1-0"]
[Round "11"]
[TimeControl "180+1"]
[Date "2022.03.08"]
[WhiteClock "0:00:12"]
[BlackClock "0:00:09"]

1. e4 {[%clk 0:03:00]}  c5 {[%clk 0:02:59]} 2. Nf3 {[%clk 0:03:01]}  d6 {[%clk 0:02:57]} 3. d4 {[%clk 0:03:01]}  cxd4 {[%clk 0:02:58]} 4. Qxd4 {[%clk 0:03:00]}  Nc6 {[%clk 0:02:58]} 5. Bb5 {[%clk 0:02:58]}  Bd7 {[%clk 0:02:59]} 6. Bxc6 {[%clk 0:02:58]}  Bxc6 {[%clk 0:02:59]} 7. Nc3 {[%clk 0:02:59]}  Nf6 {[%clk 0:03:00]} 8. Bg5 {[%clk 0:02:59]}  e6 {[%clk 0:02:58]} 9. O-O-O {[%clk 0:02:59]}  Be7 {[%clk 0:02:58]} 10. Rhe1 {[%clk 0:02:59]}  O-O {[%clk 0:02:54]} 11. Kb1 {[%clk 0:02:59]}  Qa5 {[%clk 0:02:42]} 12. Qd2 {[%clk 0:02:59]}  Qc7 {[%clk 0:02:30]} 13. Nd4 {[%clk 0:02:58]}  a6 {[%clk 0:02:28]} 14. f3 {[%clk 0:02:58]}  Rfd8 {[%clk 0:02:21]} 15. g4 {[%clk 0:02:58]}  b5 {[%clk 0:02:20]} 16. h4 {[%clk 0:02:58]}  b4 {[%clk 0:02:19]} 17. Nce2 {[%clk 0:02:58]}  a5 {[%clk 0:02:19]} 18. h5 {[%clk 0:02:54]}  h6 {[%clk 0:02:16]} 19. Be3 {[%clk 0:02:54]}  a4 {[%clk 0:02:01]} 20. Nxc6 {[%clk 0:02:45]}  Qxc6 {[%clk 0:02:00]} 21. Nd4 {[%clk 0:02:45]}  Qb7 {[%clk 0:01:47]} 22. g5 {[%clk 0:02:45]}  hxg5 {[%clk 0:01:47]} 23. Bxg5 {[%clk 0:02:45]}  b3 {[%clk 0:01:48]} 24. cxb3 {[%clk 0:02:45]}  axb3 {[%clk 0:01:49]} 25. a3 {[%clk 0:02:45]}  Nxh5 {[%clk 0:01:47]} 26. Bxe7 {[%clk 0:02:40]}  Qxe7 {[%clk 0:01:44]} 27. Nc6 {[%clk 0:02:41]}  Qf6 {[%clk 0:01:42]} 28. Nxd8 {[%clk 0:02:39]}  Rxd8 {[%clk 0:01:43]} 29. e5 {[%clk 0:02:34]}  Qxf3 {[%clk 0:01:24]} 30. exd6 {[%clk 0:02:29]}  Nf6 {[%clk 0:01:25]} 31. Qa5 {[%clk 0:01:37]}  Ra8 {[%clk 0:01:17]} 32. Qb5 {[%clk 0:01:29]}  Nd5 {[%clk 0:01:04]} 33. d7 {[%clk 0:00:48]}  Rd8 {[%clk 0:00:19]} 34. a4 {[%clk 0:00:33]}  Qf5+ {[%clk 0:00:15]} 35. Ka1 {[%clk 0:00:27]}  Qc2 {[%clk 0:00:13]} 36. Rc1 {[%clk 0:00:24]}  Qd2 {[%clk 0:00:13]} 37. Red1 {[%clk 0:00:22]}  Qg5 {[%clk 0:00:13]} 38. Rc8 {[%clk 0:00:21]}  Kh7 {[%clk 0:00:13]} 39. Rh1+ {[%clk 0:00:17]}  Kg6 {[%clk 0:00:13]} 40. Qd3+ {[%clk 0:00:16]}  f5 {[%clk 0:00:13]} 41. Rxd8 {[%clk 0:00:15]}  Qxd8 {[%clk 0:00:13]} 42. Qg3+ {[%clk 0:00:15]}  Kf7 {[%clk 0:00:13]} 43. Rh7 {[%clk 0:00:13]}  Ke7 {[%clk 0:00:12]} 44. Qxg7+ {[%clk 0:00:13]}  Kd6 {[%clk 0:00:13]} 45. Qg3+ {[%clk 0:00:11]}  f4 {[%clk 0:00:13]} 46. Qxb3 {[%clk 0:00:11]}  Qa5 {[%clk 0:00:12]} 47. Qa3+ {[%clk 0:00:09]}  Kc6 {[%clk 0:00:11]} 48. b4 {[%clk 0:00:09]}  Qb6 {[%clk 0:00:10]} 49. b5+ {[%clk 0:00:09]}  Kb7 {[%clk 0:00:09]} 50. d8=Q+ {[%clk 0:00:09]}  Nc7 {[%clk 0:00:08]} 51. Qf3+ {[%clk 0:00:09]}  Ka7 {[%clk 0:00:08]} 52. Qxc7+ {[%clk 0:00:09]}  Qxc7 {[%clk 0:00:04]} 53. Rxc7+ {[%clk 0:00:09]}  Kb6 {[%clk 0:00:05]} 54. Rc6+ {[%clk 0:00:09]}  Ka5 {[%clk 0:00:05]} 55. Ra6+ {[%clk 0:00:10]}  Kb4 {[%clk 0:00:06]} 56. Qxf4+ {[%clk 0:00:10]}  Kc5 {[%clk 0:00:05]} 57. Rc6+ {[%clk 0:00:10]}  Kd5 {[%clk 0:00:06]} 58. Qc4+ {[%clk 0:00:10]}  Ke5 {[%clk 0:00:07]} 59. Rxe6+ {[%clk 0:00:11]}  Kf5 {[%clk 0:00:08]} 60. Qe4+ {[%clk 0:00:11]}  Kg5 {[%clk 0:00:09]} 61. Rg6+ {[%clk 0:00:12]}  Kh5 {[%clk 0:00:09]} 62. Qg4# {[%clk 0:00:12]} 1-0


[Site "https://www.chess.com"]

[Event "Titled Tuesday Blitz March 08 Early 2022"]
[White "Sonis, Francesco"]
[Black "Svane, Rasmus"]
[WhiteFideId "895733"]
[BlackFideId "4657101"]
[WhiteElo "2373"]
[BlackElo "2645"]
[Result "0-1"]
[Round "11"]
[TimeControl "180+1"]
[Date "2022.03.08"]
[WhiteClock "0:00:29"]
[BlackClock "0:00:48"]

1. d4 {[%clk 0:03:00]}  Nf6 {[%clk 0:03:00]} 2. c4 {[%clk 0:03:01]}  e6 {[%clk 0:03:00]} 3. Nf3 {[%clk 0:03:01]}  d5 {[%clk 0:03:00]} 4. g3 {[%clk 0:03:00]}  Be7 {[%clk 0:02:52]} 5. Bg2 {[%clk 0:03:00]}  O-O {[%clk 0:02:53]} 6. Qc2 {[%clk 0:03:00]}  c5 {[%clk 0:02:52]} 7. dxc5 {[%clk 0:02:59]}  Qa5+ {[%clk 0:02:52]} 8. Nbd2 {[%clk 0:02:57]}  Qxc5 {[%clk 0:02:49]} 9. a3 {[%clk 0:02:55]}  b5 {[%clk 0:02:46]} 10. b4 {[%clk 0:02:51]}  Qc7 {[%clk 0:02:45]} 11. c5 {[%clk 0:02:47]}  a5 {[%clk 0:02:45]} 12. Rb1 {[%clk 0:02:46]}  axb4 {[%clk 0:02:43]} 13. axb4 {[%clk 0:02:46]}  Nc6 {[%clk 0:02:43]} 14. Qc3 {[%clk 0:02:33]}  e5 {[%clk 0:02:43]} 15. O-O {[%clk 0:02:27]}  Bf5 {[%clk 0:02:43]} 16. Rb2 {[%clk 0:02:23]}  d4 {[%clk 0:02:42]} 17. Qb3 {[%clk 0:02:23]}  Ra4 {[%clk 0:02:34]} 18. Nh4 {[%clk 0:02:02]}  Be6 {[%clk 0:02:21]} 19. Qd3 {[%clk 0:01:57]}  Rxb4 {[%clk 0:02:08]} 20. Rxb4 {[%clk 0:01:50]}  Nxb4 {[%clk 0:02:09]} 21. Qxb5 {[%clk 0:01:50]}  Rb8 {[%clk 0:02:01]} 22. Qa4 {[%clk 0:01:50]}  Qxc5 {[%clk 0:01:57]} 23. Ba3 {[%clk 0:01:50]}  Bd7 {[%clk 0:01:39]} 24. Qb3 {[%clk 0:01:44]}  Qc3 {[%clk 0:01:38]} 25. Qxc3 {[%clk 0:01:27]}  dxc3 {[%clk 0:01:39]} 26. Nc4 {[%clk 0:01:28]}  c2 {[%clk 0:01:29]} 27. Rc1 {[%clk 0:01:27]}  Ba4 {[%clk 0:01:12]} 28. Nf5 {[%clk 0:01:12]}  Bf8 {[%clk 0:01:08]} 29. Bxb4 {[%clk 0:00:56]}  Rxb4 {[%clk 0:01:00]} 30. Na3 {[%clk 0:00:56]}  Rb2 {[%clk 0:00:54]} 31. Nxc2 {[%clk 0:00:36]}  Bxc2 {[%clk 0:00:55]} 32. Ne3 {[%clk 0:00:35]}  Rb1 {[%clk 0:00:54]} 33. Rxb1 {[%clk 0:00:32]}  Bxb1 {[%clk 0:00:55]} 34. Nc4 {[%clk 0:00:33]}  e4 {[%clk 0:00:51]} 35. h3 {[%clk 0:00:32]}  Bc5 {[%clk 0:00:50]} 36. g4 {[%clk 0:00:32]}  h6 {[%clk 0:00:50]} 37. Kf1 {[%clk 0:00:29]}  Kf8 {[%clk 0:00:50]} 38. Nd2 {[%clk 0:00:29]}  Bc2 {[%clk 0:00:48]} 39. Nc4 {[%clk 0:00:29]}  Ke7 {[%clk 0:00:48]} 0-1


[Site "https://www.chess.com"]

[Event "Titled Tuesday Blitz March 08 Early 2022"]
[White "Sovetbekova, Nurai"]
[Black "Havanecz, Bianka"]
[WhiteFideId "13801910"]
[BlackFideId "704814"]
[WhiteElo "1538"]
[BlackElo "2362"]
[Result "1-0"]
[Round "11"]
[TimeControl "180+1"]
[Date "2022.03.09"]
[WhiteClock "0:00:08"]
[BlackClock "0:00:07"]

1. d4 {[%clk 0:03:00]}  d5 {[%clk 0:02:59]} 2. c4 {[%clk 0:03:00]}  e6 {[%clk 0:02:59]} 3. Nf3 {[%clk 0:03:01]}  Nf6 {[%clk 0:02:59]} 4. g3 {[%clk 0:03:01]}  Be7 {[%clk 0:03:00]} 5. Bg2 {[%clk 0:03:01]}  O-O {[%clk 0:03:00]} 6. O-O {[%clk 0:03:01]}  dxc4 {[%clk 0:03:00]} 7. Ne5 {[%clk 0:02:59]}  Nc6 {[%clk 0:02:52]} 8. Nxc6 {[%clk 0:02:58]}  bxc6 {[%clk 0:02:53]} 9. Na3 {[%clk 0:02:58]}  Bxa3 {[%clk 0:02:52]} 10. bxa3 {[%clk 0:02:59]}  Rb8 {[%clk 0:02:49]} 11. Qa4 {[%clk 0:02:55]}  Qxd4 {[%clk 0:02:47]} 12. Be3 {[%clk 0:02:50]}  Qb2 {[%clk 0:02:39]} 13. Bxa7 {[%clk 0:02:33]}  Ra8 {[%clk 0:02:19]} 14. Bxc6 {[%clk 0:02:13]}  Bd7 {[%clk 0:02:19]} 15. Bxd7 {[%clk 0:02:06]}  Nxd7 {[%clk 0:02:19]} 16. Qxd7 {[%clk 0:01:55]}  Rxa7 {[%clk 0:02:19]} 17. Qc6 {[%clk 0:01:37]}  Qxe2 {[%clk 0:01:53]} 18. Rfe1 {[%clk 0:01:33]}  Qd3 {[%clk 0:01:48]} 19. Rac1 {[%clk 0:01:25]}  Rxa3 {[%clk 0:01:44]} 20. Rxc4 {[%clk 0:01:21]}  Rxa2 {[%clk 0:01:43]} 21. Qxc7 {[%clk 0:01:14]}  Qd2 {[%clk 0:01:26]} 22. Rf1 {[%clk 0:01:12]}  h6 {[%clk 0:01:23]} 23. Qb7 {[%clk 0:00:59]}  Ra5 {[%clk 0:01:09]} 24. Rc7 {[%clk 0:00:43]}  Rf5 {[%clk 0:01:08]} 25. Qb6 {[%clk 0:00:30]}  Ra8 {[%clk 0:01:00]} 26. Rfc1 {[%clk 0:00:24]}  Ra2 {[%clk 0:00:57]} 27. Rc8+ {[%clk 0:00:18]}  Kh7 {[%clk 0:00:57]} 28. Rf1 {[%clk 0:00:17]}  Qd5 {[%clk 0:00:45]} 29. Qb1 {[%clk 0:00:15]}  h5 {[%clk 0:00:33]} 30. Rc3 {[%clk 0:00:13]}  Rd2 {[%clk 0:00:23]} 31. Re3 {[%clk 0:00:13]}  g6 {[%clk 0:00:20]} 32. Qe1 {[%clk 0:00:10]}  Kg7 {[%clk 0:00:18]} 33. Qa1+ {[%clk 0:00:10]}  Kh7 {[%clk 0:00:17]} 34. Qc3 {[%clk 0:00:10]}  Qd4 {[%clk 0:00:13]} 35. Qc1 {[%clk 0:00:09]}  Rfxf2 {[%clk 0:00:10]} 36. Rxf2 {[%clk 0:00:07]}  Qxe3 {[%clk 0:00:11]} 37. Qxd2 {[%clk 0:00:07]}  Qe4 {[%clk 0:00:09]} 38. Rxf7+ {[%clk 0:00:06]}  Kg8 {[%clk 0:00:09]} 39. Rf2 {[%clk 0:00:07]}  Qb1+ {[%clk 0:00:08]} 40. Kg2 {[%clk 0:00:07]}  Qe4+ {[%clk 0:00:09]} 41. Rf3 {[%clk 0:00:08]}  e5 {[%clk 0:00:08]} 42. Qe3 {[%clk 0:00:08]}  Qc2+ {[%clk 0:00:08]} 43. Rf2 {[%clk 0:00:08]}  Qc6+ {[%clk 0:00:08]} 44. Qf3 {[%clk 0:00:08]}  Qe4 {[%clk 0:00:07]} 45. Qxe4 {[%clk 0:00:08]} 1-0


[Site "https://www.chess.com"]

[Event "Titled Tuesday Blitz March 08 Early 2022"]
[White "Tarini, Goyal"]
[Black "Demin, Vladimir"]
[WhiteFideId "5082749"]
[BlackFideId "4167457"]
[WhiteElo "1772"]
[BlackElo "2496"]
[Result "0-1"]
[Round "11"]
[TimeControl "180+1"]
[Date "2022.03.09"]
[WhiteClock "0:00:02"]
[BlackClock "0:00:06"]

1. d4 {[%clk 0:03:00]}  Nf6 {[%clk 0:02:57]} 2. c4 {[%clk 0:03:00]}  e5 {[%clk 0:02:54]} 3. dxe5 {[%clk 0:02:59]}  Ng4 {[%clk 0:02:54]} 4. Nf3 {[%clk 0:02:58]}  Bc5 {[%clk 0:02:54]} 5. e3 {[%clk 0:02:58]}  Nc6 {[%clk 0:02:55]} 6. Be2 {[%clk 0:02:49]}  O-O {[%clk 0:02:55]} 7. O-O {[%clk 0:02:48]}  Re8 {[%clk 0:02:54]} 8. a3 {[%clk 0:02:46]}  a5 {[%clk 0:02:54]} 9. Nc3 {[%clk 0:02:38]}  Ncxe5 {[%clk 0:02:53]} 10. Nxe5 {[%clk 0:02:37]}  Nxe5 {[%clk 0:02:54]} 11. Rb1 {[%clk 0:02:20]}  Ra6 {[%clk 0:02:45]} 12. b4 {[%clk 0:02:17]}  Ba7 {[%clk 0:02:42]} 13. c5 {[%clk 0:01:56]}  Rh6 {[%clk 0:02:33]} 14. f4 {[%clk 0:01:41]}  Qh4 {[%clk 0:02:25]} 15. h3 {[%clk 0:01:37]}  d6 {[%clk 0:02:19]} 16. fxe5 {[%clk 0:01:08]}  Bxh3 {[%clk 0:02:17]} 17. Bf3 {[%clk 0:00:55]}  Bf5 {[%clk 0:01:47]} 18. e4 {[%clk 0:00:46]}  dxc5 {[%clk 0:01:44]} 19. Nb5 {[%clk 0:00:31]}  Bxe4 {[%clk 0:01:32]} 20. Bxh6 {[%clk 0:00:22]}  Bxb1 {[%clk 0:01:26]} 21. Nxa7 {[%clk 0:00:20]}  Qxh6 {[%clk 0:01:17]} 22. Qxb1 {[%clk 0:00:16]}  Qe3+ {[%clk 0:01:11]} 23. Rf2 {[%clk 0:00:06]}  cxb4 {[%clk 0:01:11]} 24. Qf1 {[%clk 0:00:04]}  Qxa7 {[%clk 0:01:09]} 25. Bd5 {[%clk 0:00:03]}  Rxe5 {[%clk 0:01:08]} 26. Bxf7+ {[%clk 0:00:02]}  Kh8 {[%clk 0:01:08]} 27. Bb3 {[%clk 0:00:03]}  bxa3 {[%clk 0:01:01]} 28. Qd1 {[%clk 0:00:03]}  Re8 {[%clk 0:00:56]} 29. Qf3 {[%clk 0:00:03]}  Qc5 {[%clk 0:00:45]} 30. Kh2 {[%clk 0:00:01]}  Qd6+ {[%clk 0:00:40]} 31. Kg1 {[%clk 0:00:01]}  Re1+ {[%clk 0:00:34]} 32. Rf1 {[%clk 0:00:01]}  Qc5+ {[%clk 0:00:28]} 33. Kh2 {[%clk 0:00:02]}  Qd6+ {[%clk 0:00:23]} 34. Kg1 {[%clk 0:00:02]}  Rxf1+ {[%clk 0:00:21]} 35. Qxf1 {[%clk 0:00:01]}  h6 {[%clk 0:00:18]} 36. Kh1 {[%clk 0:00:02]}  Qc5 {[%clk 0:00:17]} 37. Ba2 {[%clk 0:00:03]}  Qh5+ {[%clk 0:00:17]} 38. Kg1 {[%clk 0:00:02]}  Qe8 {[%clk 0:00:17]} 39. Qc4 {[%clk 0:00:02]}  c6 {[%clk 0:00:16]} 40. Qb3 {[%clk 0:00:01]}  b5 {[%clk 0:00:15]} 41. Qxa3 {[%clk 0:00:01]}  Qe1+ {[%clk 0:00:13]} 42. Kh2 {[%clk 0:00:02]}  Qh4+ {[%clk 0:00:14]} 43. Kg1 {[%clk 0:00:03]}  Qe1+ {[%clk 0:00:12]} 44. Kh2 {[%clk 0:00:03]}  Qe5+ {[%clk 0:00:12]} 45. Kg1 {[%clk 0:00:02]}  b4 {[%clk 0:00:11]} 46. Qb3 {[%clk 0:00:02]}  Qe8 {[%clk 0:00:09]} 47. Kh2 {[%clk 0:00:02]}  c5 {[%clk 0:00:09]} 48. Qc4 {[%clk 0:00:02]}  Qf8 {[%clk 0:00:07]} 49. Qb3 {[%clk 0:00:02]}  Qd6+ {[%clk 0:00:05]} 50. Kh1 {[%clk 0:00:02]}  Qf8 {[%clk 0:00:06]} 0-1


[Site "https://www.chess.com"]

[Event "Titled Tuesday Blitz March 08 Early 2022"]
[White "Tasev, Dejan"]
[Black "Bures, Vit"]
[WhiteFideId "936618"]
[BlackFideId "309052"]
[WhiteElo "2253"]
[BlackElo "2118"]
[Result "1/2-1/2"]
[Round "11"]
[TimeControl "180+1"]
[Date "2022.03.09"]
[WhiteClock "0:00:26"]
[BlackClock "0:00:06"]

1. e4 {[%clk 0:02:56]}  e5 {[%clk 0:02:52]} 2. Nf3 {[%clk 0:02:56]}  Nc6 {[%clk 0:02:52]} 3. Bc4 {[%clk 0:02:55]}  Bc5 {[%clk 0:02:51]} 4. d3 {[%clk 0:02:55]}  Nf6 {[%clk 0:02:51]} 5. Nc3 {[%clk 0:02:54]}  h6 {[%clk 0:02:50]} 6. h3 {[%clk 0:02:54]}  d6 {[%clk 0:02:50]} 7. Be3 {[%clk 0:02:53]}  Bxe3 {[%clk 0:02:47]} 8. fxe3 {[%clk 0:02:52]}  Na5 {[%clk 0:02:48]} 9. Bb3 {[%clk 0:02:52]}  Nxb3 {[%clk 0:02:47]} 10. axb3 {[%clk 0:02:51]}  O-O {[%clk 0:02:47]} 11. O-O {[%clk 0:02:50]}  Bd7 {[%clk 0:02:40]} 12. Qe1 {[%clk 0:02:48]}  a5 {[%clk 0:02:40]} 13. Nh4 {[%clk 0:02:47]}  c6 {[%clk 0:02:25]} 14. Nf5 {[%clk 0:02:47]}  Bxf5 {[%clk 0:02:23]} 15. Rxf5 {[%clk 0:02:45]}  g6 {[%clk 0:02:14]} 16. Rf3 {[%clk 0:02:43]}  Kg7 {[%clk 0:02:14]} 17. Qf2 {[%clk 0:02:43]}  Nh7 {[%clk 0:02:13]} 18. Rf1 {[%clk 0:02:41]}  Ng5 {[%clk 0:02:11]} 19. Rg3 {[%clk 0:02:40]}  h5 {[%clk 0:01:49]} 20. Nb1 {[%clk 0:02:10]}  a4 {[%clk 0:01:48]} 21. b4 {[%clk 0:02:09]}  d5 {[%clk 0:01:40]} 22. exd5 {[%clk 0:02:06]}  cxd5 {[%clk 0:01:39]} 23. Nc3 {[%clk 0:01:56]}  d4 {[%clk 0:01:24]} 24. exd4 {[%clk 0:01:51]}  exd4 {[%clk 0:01:25]} 25. Ne2 {[%clk 0:01:44]}  Ne6 {[%clk 0:01:25]} 26. Nf4 {[%clk 0:01:39]}  Nxf4 {[%clk 0:01:22]} 27. Qxf4 {[%clk 0:01:39]}  Rc8 {[%clk 0:01:10]} 28. Rf2 {[%clk 0:01:33]}  Qc7 {[%clk 0:01:05]} 29. Qxd4+ {[%clk 0:01:29]}  Kg8 {[%clk 0:01:01]} 30. Rgf3 {[%clk 0:01:25]}  Qe7 {[%clk 0:00:50]} 31. Re3 {[%clk 0:00:57]}  Qg5 {[%clk 0:00:46]} 32. Qf4 {[%clk 0:00:50]}  Qxf4 {[%clk 0:00:44]} 33. Rxf4 {[%clk 0:00:50]}  Rxc2 {[%clk 0:00:45]} 34. b5 {[%clk 0:00:49]}  Rxb2 {[%clk 0:00:42]} 35. Rxa4 {[%clk 0:00:49]}  Rxb5 {[%clk 0:00:42]} 36. Re7 {[%clk 0:00:49]}  Kg7 {[%clk 0:00:32]} 37. Rd4 {[%clk 0:00:47]}  Rb8 {[%clk 0:00:23]} 38. Rdd7 {[%clk 0:00:46]}  Rf5 {[%clk 0:00:17]} 39. Rxb7 {[%clk 0:00:46]}  Rxb7 {[%clk 0:00:17]} 40. Rxb7 {[%clk 0:00:47]}  Rd5 {[%clk 0:00:17]} 41. Rb3 {[%clk 0:00:47]}  Kf6 {[%clk 0:00:18]} 42. Kf2 {[%clk 0:00:47]}  Ke5 {[%clk 0:00:18]} 43. Ke3 {[%clk 0:00:48]}  h4 {[%clk 0:00:18]} 44. Rb4 {[%clk 0:00:47]}  g5 {[%clk 0:00:18]} 45. Rb6 {[%clk 0:00:46]}  f6 {[%clk 0:00:16]} 46. Rb8 {[%clk 0:00:46]}  Ra5 {[%clk 0:00:15]} 47. Re8+ {[%clk 0:00:45]}  Kf5 {[%clk 0:00:15]} 48. Kf3 {[%clk 0:00:44]}  Ra3 {[%clk 0:00:14]} 49. Rd8 {[%clk 0:00:43]}  Rb3 {[%clk 0:00:13]} 50. Rd5+ {[%clk 0:00:43]}  Ke6 {[%clk 0:00:13]} 51. Rd4 {[%clk 0:00:43]}  Ke5 {[%clk 0:00:13]} 52. Rd8 {[%clk 0:00:42]}  Ke6 {[%clk 0:00:13]} 53. Ke4 {[%clk 0:00:42]}  Rb2 {[%clk 0:00:13]} 54. Kf3 {[%clk 0:00:43]}  Rb3 {[%clk 0:00:12]} 55. g4 {[%clk 0:00:39]}  hxg3 {[%clk 0:00:12]} 56. Kxg3 {[%clk 0:00:39]}  Kf5 {[%clk 0:00:11]} 57. Kf3 {[%clk 0:00:38]}  Rb1 {[%clk 0:00:11]} 58. Rd5+ {[%clk 0:00:38]}  Ke6 {[%clk 0:00:08]} 59. Rd4 {[%clk 0:00:38]}  Rf1+ {[%clk 0:00:08]} 60. Kg2 {[%clk 0:00:39]}  Re1 {[%clk 0:00:07]} 61. h4 {[%clk 0:00:38]}  gxh4 {[%clk 0:00:04]} 62. Rxh4 {[%clk 0:00:37]}  f5 {[%clk 0:00:05]} 63. Kf2 {[%clk 0:00:37]}  Rd1 {[%clk 0:00:04]} 64. Ke3 {[%clk 0:00:37]}  Ke5 {[%clk 0:00:04]} 65. Rh8 {[%clk 0:00:36]}  Re1+ {[%clk 0:00:03]} 66. Kf2 {[%clk 0:00:36]}  Ra1 {[%clk 0:00:04]} 67. Ke3 {[%clk 0:00:34]}  Re1+ {[%clk 0:00:04]} 68. Kd2 {[%clk 0:00:34]}  Ra1 {[%clk 0:00:05]} 69. Re8+ {[%clk 0:00:34]}  Kf4 {[%clk 0:00:05]} 70. d4 {[%clk 0:00:33]}  Kf3 {[%clk 0:00:06]} 71. Kd3 {[%clk 0:00:31]}  f4 {[%clk 0:00:05]} 72. d5 {[%clk 0:00:31]}  Rd1+ {[%clk 0:00:05]} 73. Kc4 {[%clk 0:00:32]}  Kf2 {[%clk 0:00:05]} 74. Kc5 {[%clk 0:00:31]}  f3 {[%clk 0:00:05]} 75. d6 {[%clk 0:00:32]}  Kf1 {[%clk 0:00:03]} 76. Re4 {[%clk 0:00:30]}  Rc1+ {[%clk 0:00:02]} 77. Kd5 {[%clk 0:00:30]}  Rc8 {[%clk 0:00:02]} 78. d7 {[%clk 0:00:28]}  Rd8 {[%clk 0:00:02]} 79. Kd6 {[%clk 0:00:27]}  f2 {[%clk 0:00:03]} 80. Re7 {[%clk 0:00:26]}  Rxd7+ {[%clk 0:00:04]} 81. Kxd7 {[%clk 0:00:26]}  Kg1 {[%clk 0:00:04]} 82. Rg7+ {[%clk 0:00:26]}  Kh2 {[%clk 0:00:05]} 83. Rh7+ {[%clk 0:00:26]}  Kg2 {[%clk 0:00:05]} 84. Rg7+ {[%clk 0:00:26]}  Kh2 {[%clk 0:00:06]} 85. Rh7+ {[%clk 0:00:26]}  Kg2 {[%clk 0:00:06]} 86. Rg7+ {[%clk 0:00:26]}  Kh2 {[%clk 0:00:06]} 1/2-1/2


[Site "https://www.chess.com"]

[Event "Titled Tuesday Blitz March 08 Early 2022"]
[White "Thomas, Anysia"]
[Black "Tsatsalashvili, Keti"]
[WhiteFideId "670472"]
[BlackFideId "13603434"]
[WhiteElo "2002"]
[BlackElo "2246"]
[Result "0-1"]
[Round "11"]
[TimeControl "180+1"]
[Date "2022.03.09"]
[WhiteClock "0:00:05"]
[BlackClock "0:00:14"]

1. d4 {[%clk 0:03:00]}  Nf6 {[%clk 0:02:59]} 2. c4 {[%clk 0:02:58]}  e6 {[%clk 0:02:59]} 3. Nf3 {[%clk 0:02:58]}  d5 {[%clk 0:02:55]} 4. g3 {[%clk 0:02:58]}  Bb4+ {[%clk 0:02:51]} 5. Bd2 {[%clk 0:02:57]}  Be7 {[%clk 0:02:52]} 6. Bg2 {[%clk 0:02:56]}  O-O {[%clk 0:02:48]} 7. O-O {[%clk 0:02:56]}  c6 {[%clk 0:02:47]} 8. Qc2 {[%clk 0:02:57]}  b6 {[%clk 0:02:36]} 9. Rd1 {[%clk 0:02:57]}  Ba6 {[%clk 0:02:31]} 10. b3 {[%clk 0:02:55]}  Nbd7 {[%clk 0:02:24]} 11. a4 {[%clk 0:02:55]}  Ne4 {[%clk 0:02:17]} 12. Be1 {[%clk 0:02:46]}  f5 {[%clk 0:02:16]} 13. a5 {[%clk 0:02:44]}  Bd6 {[%clk 0:02:13]} 14. Nc3 {[%clk 0:02:27]}  Bc7 {[%clk 0:01:59]} 15. axb6 {[%clk 0:02:18]}  axb6 {[%clk 0:01:57]} 16. Nxe4 {[%clk 0:01:53]}  fxe4 {[%clk 0:01:56]} 17. Nd2 {[%clk 0:01:52]}  Bd6 {[%clk 0:01:34]} 18. Nxe4 {[%clk 0:01:44]}  dxe4 {[%clk 0:01:32]} 19. Bxe4 {[%clk 0:01:44]}  Bb7 {[%clk 0:01:13]} 20. Bxh7+ {[%clk 0:01:41]}  Kh8 {[%clk 0:01:12]} 21. Be4 {[%clk 0:01:29]}  Nf6 {[%clk 0:01:02]} 22. Bg2 {[%clk 0:01:27]}  Qe7 {[%clk 0:00:49]} 23. Bc3 {[%clk 0:00:56]}  e5 {[%clk 0:00:44]} 24. dxe5 {[%clk 0:00:51]}  Bxe5 {[%clk 0:00:45]} 25. Bxe5 {[%clk 0:00:49]}  Qxe5 {[%clk 0:00:46]} 26. Rxa8 {[%clk 0:00:49]}  Rxa8 {[%clk 0:00:45]} 27. Bf3 {[%clk 0:00:33]}  Ra1 {[%clk 0:00:40]} 28. Kg2 {[%clk 0:00:31]}  Rxd1 {[%clk 0:00:37]} 29. Qxd1 {[%clk 0:00:31]}  Qe7 {[%clk 0:00:35]} 30. Qd4 {[%clk 0:00:26]}  c5 {[%clk 0:00:30]} 31. Qh4+ {[%clk 0:00:19]}  Kg8 {[%clk 0:00:30]} 32. Bxb7 {[%clk 0:00:14]}  Qxb7+ {[%clk 0:00:31]} 33. f3 {[%clk 0:00:14]}  Qd7 {[%clk 0:00:30]} 34. Qf4 {[%clk 0:00:11]}  Qd1 {[%clk 0:00:23]} 35. Qb8+ {[%clk 0:00:08]}  Kh7 {[%clk 0:00:23]} 36. Kf2 {[%clk 0:00:08]}  Qxb3 {[%clk 0:00:21]} 37. h4 {[%clk 0:00:07]}  Qxc4 {[%clk 0:00:19]} 38. Qxb6 {[%clk 0:00:06]}  Qd4+ {[%clk 0:00:19]} 39. Kg2 {[%clk 0:00:06]}  Qe3 {[%clk 0:00:19]} 40. Qb2 {[%clk 0:00:05]}  c4 {[%clk 0:00:18]} 41. Qc2+ {[%clk 0:00:05]}  Kh8 {[%clk 0:00:15]} 42. g4 {[%clk 0:00:05]}  c3 {[%clk 0:00:14]} 43. g5 {[%clk 0:00:06]}  Nd5 {[%clk 0:00:14]} 44. Qg6 {[%clk 0:00:05]}  Nf4+ {[%clk 0:00:13]} 45. Kg3 {[%clk 0:00:05]}  Nxg6 {[%clk 0:00:14]} 0-1


[Site "https://www.chess.com"]

[Event "Titled Tuesday Blitz March 08 Early 2022"]
[White "Tymrakiewicz, Rafal"]
[Black "Artemenko, Oleg"]
[WhiteFideId "1108832"]
[BlackFideId "14201798"]
[WhiteElo "2205"]
[BlackElo "2287"]
[Result "0-1"]
[Round "11"]
[TimeControl "180+1"]
[Date "2022.03.09"]
[WhiteClock "0:00:12"]
[BlackClock "0:01:41"]

1. e4 {[%clk 0:03:00]}  e6 {[%clk 0:02:59]} 2. d4 {[%clk 0:03:00]}  d5 {[%clk 0:03:00]} 3. e5 {[%clk 0:03:01]}  c5 {[%clk 0:03:00]} 4. c3 {[%clk 0:03:01]}  Nc6 {[%clk 0:03:01]} 5. Nf3 {[%clk 0:03:01]}  Qb6 {[%clk 0:03:01]} 6. Bd3 {[%clk 0:02:57]}  cxd4 {[%clk 0:03:01]} 7. O-O {[%clk 0:02:57]}  Bd7 {[%clk 0:03:02]} 8. Re1 {[%clk 0:02:56]}  Nge7 {[%clk 0:03:01]} 9. a3 {[%clk 0:02:56]}  Ng6 {[%clk 0:02:57]} 10. cxd4 {[%clk 0:02:53]}  Nxd4 {[%clk 0:02:54]} 11. Ng5 {[%clk 0:02:39]}  Nc6 {[%clk 0:02:49]} 12. b4 {[%clk 0:02:38]}  Ngxe5 {[%clk 0:02:47]} 13. Bb2 {[%clk 0:02:36]}  Bd6 {[%clk 0:02:46]} 14. b5 {[%clk 0:01:58]}  Nd4 {[%clk 0:02:39]} 15. a4 {[%clk 0:01:50]}  h6 {[%clk 0:02:29]} 16. a5 {[%clk 0:01:43]}  Qc7 {[%clk 0:02:22]} 17. b6 {[%clk 0:01:25]}  Qc5 {[%clk 0:02:12]} 18. Bxd4 {[%clk 0:00:33]}  Qxd4 {[%clk 0:02:07]} 19. Nxe6 {[%clk 0:00:33]}  Qxa1 {[%clk 0:01:53]} 20. Nxg7+ {[%clk 0:00:31]}  Kf8 {[%clk 0:01:49]} 21. Nh5 {[%clk 0:00:29]}  Qd4 {[%clk 0:01:46]} 22. Rxe5 {[%clk 0:00:24]}  Qxe5 {[%clk 0:01:43]} 23. Ng3 {[%clk 0:00:11]}  axb6 {[%clk 0:01:41]} 24. Nd2 {[%clk 0:00:11]}  Rxa5 {[%clk 0:01:40]} 25. Nf3 {[%clk 0:00:12]}  Ra1 {[%clk 0:01:41]} 0-1


[Site "https://www.chess.com"]